bitfinex/quotes_BTCUSD_20220304
["timestamp","ask_amount","ask_price","bid_price","bid_amount"]
[1646357031071,0.005,41414.0,41404.0,0.21116389]
[1646357031281,0.21411638,41410.0,41404.0,0.21116389]
[1646357031673,0.21411638,41410.0,41404.0,0.22150894]
[1646357031870,0.21411638,41410.0,41405.0,0.01165214]
[1646357032071,0.3679,41409.0,41406.0,0.01222614]
[1646357032271,0.22969401,41410.0,41407.0,0.01116187]
[1646357032470,0.3679,41409.0,41408.0,0.01270712]
[1646357032670,0.21611638,41410.0,41409.0,0.01009179]
[1646357032871,0.22907998,41410.0,41402.0,0.12086491]
[1646357033073,0.21611638,41410.0,41402.0,0.12086491]
[1646357033273,0.18592707,41404.0,41402.0,0.12086491]
[1646357033574,0.01025948,41406.0,41402.0,0.40562484]
[1646357033777,0.37799686,41409.0,41402.0,0.12086491]
[1646357033973,0.01009686,41409.0,41402.0,0.12086491]
[1646357034172,0.01133719,41407.0,41402.0,0.12086491]
[1646357034373,0.1,41411.0,41402.0,0.12086491]
[1646357034374,0.16933579,41403.0,41402.0,0.12086491]
[1646357034819,0.004,41406.0,41403.0,0.28697193]
[1646357035021,0.004,41406.0,41404.0,0.7233]
[1646357035422,0.004,41406.0,41403.0,0.28697193]
[1646357035423,0.004,41406.0,41405.0,0.010114]
[1646357035620,0.5,41411.0,41403.0,0.28697193]
[1646357036424,0.5,41411.0,41403.0,1.01027193]
[1646357036821,0.5,41411.0,41405.0,0.010111]
[1646357037023,0.5,41411.0,41406.0,0.0446]
[1646357037222,0.5,41411.0,41404.0,0.310112]
[1646357037223,0.5,41411.0,41407.0,0.054709]
[1646357037423,0.5,41411.0,41410.0,0.28456763]
[1646357037623,2.5,41417.0,41411.0,0.06042305]
[1646357038223,2.51913951,41417.0,41411.0,0.06042305]
[1646357038692,2.004,41417.0,41412.0,0.0101]
[1646357038893,2.01709348,41417.0,41412.0,0.0101]
[1646357039491,2.01309348,41417.0,41412.0,0.0101]
[1646357039692,2.01309348,41417.0,41415.0,0.27945293]
[1646357039892,2.01309348,41417.0,41412.0,0.0446]
[1646357040097,2.0,41417.0,41413.0,0.733396]
[1646357040294,2.0,41417.0,41415.0,0.733395]
[1646357040495,2.0,41417.0,41416.0,0.0446]
[1646357040695,1.63755905,41417.0,41416.0,0.054694]
[1646357040895,1.63755905,41417.0,41416.0,0.26006186]
[1646357041095,1.27513995,41417.0,41416.0,0.56006186]
[1646357041296,1.27513995,41417.0,41416.0,0.68407186]
[1646357041496,1.27513995,41417.0,41416.0,1.38336186]
[1646357041698,0.91275074,41417.0,41416.0,1.38336186]
[1646357042094,0.55030906,41417.0,41416.0,1.08336186]
[1646357042522,0.55030906,41417.0,41416.0,0.0446]
[1646357042723,0.72177392,41417.0,41416.0,0.0446]
[1646357042925,0.72177392,41417.0,41416.0,0.01145423]
[1646357042926,0.91754596,41417.0,41416.0,0.01145423]
[1646357043224,0.15862229,41413.0,41411.0,0.06742345]
[1646357044123,0.15862229,41413.0,41411.0,0.06042345]
[1646357044328,0.16062229,41413.0,41411.0,0.06042345]
[1646357044724,0.3679,41412.0,41406.0,0.12184867]
[1646357044927,0.18699671,41409.0,41406.0,0.12184867]
[1646357045127,0.3679,41408.0,41406.0,0.12184867]
[1646357045327,0.002,41413.0,41406.0,0.12184867]
[1646357045531,0.54964596,41417.0,41407.0,1.03737022]
[1646357045726,0.54964596,41417.0,41409.0,0.010103]
[1646357046376,0.17988453,41416.0,41411.0,0.010101]
[1646357046578,0.17988453,41416.0,41411.0,0.054701]
[1646357046889,0.55164596,41417.0,41413.0,0.8733]
[1646357047082,0.55164596,41417.0,41416.0,0.89731]
[1646357047282,0.55164596,41417.0,41416.0,1.49596322]
[1646357047481,0.18926239,41417.0,41416.0,1.35596322]
[1646357047779,0.18726239,41417.0,41416.0,1.55985674]
[1646357047982,0.16207012,41428.0,41421.0,0.06040025]
[1646357048180,0.16207012,41428.0,41422.0,0.36107948]
[1646357048380,0.16207012,41428.0,41422.0,0.05468]
[1646357048578,1.4616,41443.0,41422.0,0.05468]
[1646357048779,1.4616,41443.0,41423.0,0.30639948]
[1646357048780,0.01129675,41435.0,41423.0,0.30639948]
[1646357048981,0.01129675,41435.0,41428.0,0.06039524]
[1646357049184,2.06925937,41448.0,41432.0,0.12076575]
[1646357049185,0.51513247,41442.0,41432.0,0.12076575]
[1646357049386,0.5,41442.0,41433.0,0.054657]
[1646357049582,0.01399502,41441.0,41433.0,0.054657]
[1646357049819,0.51596135,41442.0,41433.0,0.054657]
[1646357050020,0.01102718,41441.0,41435.0,0.24333903]
[1646357050220,0.01357529,41439.0,41436.0,0.010054]
[1646357050420,0.21780569,41443.0,41433.0,0.0446]
[1646357050421,0.0123063,41442.0,41433.0,0.16936676]
[1646357050621,0.0123063,41442.0,41433.0,0.0486]
[1646357051021,0.19796818,41441.0,41433.0,0.0486]
[1646357051225,0.21780569,41443.0,41433.0,0.0486]
[1646357051425,0.43588479,41443.0,41433.0,0.0486]
[1646357051732,0.5,41448.0,41434.0,0.37684371]
[1646357051937,0.00797795,41447.0,41435.0,0.0446]
[1646357052123,0.5,41448.0,41435.0,0.7679]
[1646357052322,0.5,41448.0,41437.0,0.010049]
[1646357052323,0.01364963,41446.0,41437.0,0.010049]
[1646357052529,0.5,41448.0,41445.0,1.00782509]
[1646357052726,0.01366124,41453.0,41448.0,0.7233]
[1646357052925,0.01982,41456.0,41451.0,0.010027]
[1646357053124,0.15774959,41459.0,41453.0,0.7233]
[1646357053325,0.15774959,41459.0,41456.0,0.010019]
[1646357053577,0.50707227,41472.0,41457.0,1.03922202]
[1646357053776,0.1614716,41469.0,41459.0,0.7233]
[1646357054077,0.01341347,41471.0,41462.0,0.010003]
[1646357054276,0.06035,41473.0,41463.0,0.0446]
[1646357054479,0.16943323,41471.0,41464.0,0.01]
[1646357054677,0.01136349,41469.0,41464.0,0.01079347]
[1646357054877,0.01136349,41469.0,41463.0,0.0446]
[1646357054878,0.3679,41468.0,41465.0,0.01048577]
[1646357055077,0.4213558,41466.0,41463.0,0.05737048]
[1646357055277,0.01317109,41465.0,41463.0,0.0446]
[1646357055479,0.86257557,41463.0,41453.0,0.01205]
[1646357055679,0.01024391,41459.0,41454.0,0.0446]
[1646357055878,0.01386996,41461.0,41454.0,0.0446]
[1646357055879,0.3679,41458.0,41454.0,0.0446]
[1646357056078,0.3679,41456.0,41454.0,0.0446]
[1646357056278,0.01386996,41461.0,41455.0,0.27888804]
[1646357056483,0.281872,41478.0,41456.0,0.733321]
[1646357056484,0.11478705,41470.0,41456.0,0.733321]
[1646357056681,0.13703623,41477.0,41460.0,0.74731]
[1646357056886,0.01269711,41478.0,41464.0,0.7233]
[1646357057082,0.01269711,41478.0,41458.0,0.15]
[1646357057083,0.05434683,41479.0,41465.0,0.35099948]
[1646357057325,0.19976399,41474.0,41467.0,0.23179377]
[1646357057527,0.01000406,41473.0,41468.0,0.009992]
[1646357057726,0.0125522,41478.0,41467.0,0.22989377]
[1646357057926,0.1005076,41479.0,41468.0,0.899005]
[1646357058128,0.0401706,41479.0,41471.0,0.733287]
[1646357058325,0.0401706,41479.0,41478.0,0.26624561]
[1646357058526,0.00039094,41478.0,41472.0,0.1446]
[1646357058727,0.00039094,41478.0,41473.0,0.009986]
[1646357058926,0.3679,41477.0,41469.0,0.0446]
[1646357059124,0.00039094,41478.0,41469.0,0.0446]
[1646357059627,0.05864462,41478.0,41469.0,0.0446]
[1646357059824,0.20128483,41476.0,41469.0,0.0446]
[1646357060024,0.060337,41475.0,41469.0,0.0446]
[1646357060226,0.0136533,41474.0,41469.0,0.0446]
[1646357060530,0.1608456,41479.0,41469.0,0.0446]
[1646357060531,0.05311867,41489.0,41476.0,0.06031733]
[1646357060728,0.23243344,41499.0,41477.0,0.31085881]
[1646357060983,0.15851025,41489.0,41477.0,0.31085881]
[1646357061175,0.05059241,41490.0,41477.0,0.31085881]
[1646357061374,0.20112963,41484.0,41477.0,0.31085881]
[1646357061578,0.20112963,41484.0,41477.0,0.0446]
[1646357061579,0.3679,41483.0,41477.0,0.0446]
[1646357061975,0.37860701,41483.0,41477.0,0.0446]
[1646357062182,0.060326,41485.0,41478.0,0.36671967]
[1646357062377,0.060326,41485.0,41478.0,0.10492019]
[1646357062575,0.180978,41497.0,41482.0,0.23063609]
[1646357062775,0.060317,41492.0,41482.0,0.25464609]
[1646357062979,0.346252,41507.0,41482.0,0.25464609]
[1646357062980,1.01478533,41500.0,41485.0,0.009963]
[1646357063180,1.01478533,41500.0,41489.0,0.01283439]
[1646357063181,1.00286609,41500.0,41489.0,0.01283439]
[1646357063381,0.55351079,41511.0,41494.0,0.15]
[1646357063583,0.04545455,41516.0,41502.0,0.01684463]
[1646357063780,0.04545455,41516.0,41504.0,0.14227865]
[1646357063980,0.04545455,41516.0,41505.0,0.34005178]
[1646357064178,0.04545455,41516.0,41505.0,0.851452]
[1646357064379,0.04545455,41516.0,41505.0,0.0446]
[1646357064579,0.00772135,41514.0,41506.0,0.1]
[1646357064839,0.00772135,41514.0,41507.0,0.30639948]
[1646357065036,0.00772135,41514.0,41506.0,0.0446]
[1646357065237,0.00772135,41511.0,41506.0,0.05820514]
[1646357065438,0.00772135,41508.0,41507.0,0.01384314]
[1646357065636,0.5149868,41512.0,41507.0,0.01327339]
[1646357065837,0.5149868,41512.0,41506.0,0.0446]
[1646357065838,0.00772135,41508.0,41506.0,0.0446]
[1646357066038,0.3679,41507.0,41506.0,0.0446]
[1646357066236,0.3679,41507.0,41500.0,0.0446]
[1646357066237,0.01402498,41506.0,41500.0,0.0446]
[1646357066437,0.00772135,41507.0,41498.0,0.0446]
[1646357066636,0.01301924,41506.0,41498.0,0.0446]
[1646357066835,0.01301924,41506.0,41498.0,0.009936]
[1646357067037,0.01301924,41506.0,41498.0,0.13051496]
[1646357067237,0.01301924,41506.0,41499.0,0.009936]
[1646357067540,0.01301924,41506.0,41500.0,0.06028792]
[1646357067739,0.01301924,41506.0,41501.0,0.009934]
[1646357067939,0.15579477,41505.0,41501.0,0.009934]
[1646357068140,0.16857389,41505.0,41498.0,0.12057796]
[1646357068337,0.16857389,41505.0,41499.0,0.009937]
[1646357068338,0.14357389,41505.0,41499.0,0.009937]
[1646357068576,0.14357389,41505.0,41498.0,0.12057796]
[1646357068778,0.15564831,41505.0,41499.0,0.009936]
[1646357068977,0.01207442,41505.0,41499.0,0.009936]
[1646357069179,0.06800935,41510.0,41501.0,0.009935]
[1646357069180,0.01559036,41503.0,41501.0,0.009935]
[1646357069383,0.060285,41515.0,41501.0,0.009935]
[1646357069384,0.01089469,41502.0,41501.0,0.009935]
[1646357069577,0.00772135,41513.0,41501.0,0.009935]
[1646357069778,0.060285,41515.0,41501.0,0.3]
[1646357069977,0.060285,41515.0,41500.0,0.06028831]
[1646357069978,0.20793401,41505.0,41500.0,0.06028831]
[1646357070180,0.060285,41515.0,41501.0,0.009928]
[1646357070378,0.060285,41515.0,41501.0,0.00916942]
[1646357070581,0.00086289,41519.0,41502.0,0.04384705]
[1646357070780,0.0519259,41516.0,41503.0,0.308404]
[1646357070979,0.0519259,41516.0,41503.0,0.353004]
[1646357071180,0.21903569,41514.0,41508.0,0.06027294]
[1646357071382,0.00647135,41509.0,41507.0,0.12054587]
[1646357071584,0.21903569,41514.0,41507.0,0.12054587]
[1646357071585,0.00647135,41511.0,41507.0,0.12054587]
[1646357072424,0.00647135,41511.0,41507.0,0.12354587]
[1646357072624,0.21903569,41514.0,41507.0,0.12354587]
[1646357072625,0.00647135,41514.0,41507.0,0.12354587]
[1646357072932,0.04545455,41516.0,41507.0,0.12354587]
[1646357072933,0.0319259,41516.0,41509.0,1.41027272]
[1646357073125,0.0319259,41516.0,41510.0,0.008396]
[1646357073324,0.0319259,41516.0,41509.0,0.06027272]
[1646357073727,0.0319259,41516.0,41515.0,0.28884769]
[1646357073926,0.0319259,41516.0,41515.0,0.00839]
[1646357074329,0.0319259,41516.0,41515.0,0.01239]
[1646357074527,0.0319259,41516.0,41515.0,0.15409]
[1646357074732,0.0011,41531.0,41518.0,0.7233]
[1646357074928,0.0011,41531.0,41530.0,0.24266439]
[1646357075127,0.0011,41531.0,41525.0,0.008365]
[1646357075531,0.19173582,41528.0,41525.0,0.008365]
[1646357075971,0.0011,41531.0,41525.0,0.008365]
[1646357076370,0.0011,41531.0,41525.0,0.01774217]
[1646357076573,0.0011,41531.0,41527.0,0.008367]
[1646357076772,0.0011,41531.0,41527.0,0.14168729]
[1646357076970,0.0011,41531.0,41528.0,0.01064796]
[1646357077172,0.0011,41531.0,41529.0,0.01123047]
[1646357077370,0.0011,41531.0,41528.0,0.008365]
[1646357077971,0.0011,41531.0,41527.0,0.12048954]
[1646357078176,0.0011,41531.0,41528.0,0.008365]
[1646357078370,0.0011,41531.0,41528.0,0.06324245]
[1646357079375,0.367883,41530.0,41528.0,0.003]
[1646357079578,0.367883,41530.0,41515.0,0.7233]
[1646357079579,0.15,41529.0,41515.0,0.7233]
[1646357079837,0.367883,41527.0,41517.0,0.12051855]
[1646357080036,0.22010901,41531.0,41517.0,0.12051855]
[1646357080235,0.1561672,41525.0,41517.0,0.12051855]
[1646357080439,0.16883942,41525.0,41517.0,0.12051855]
[1646357080638,0.1561672,41525.0,41517.0,0.12051855]
[1646357080839,0.01276711,41522.0,41518.0,0.7233]
[1646357081037,0.01405726,41527.0,41517.0,0.12051855]
[1646357081237,0.38210687,41526.0,41517.0,0.12051855]
[1646357081435,0.01422387,41526.0,41517.0,0.12051855]
[1646357081639,0.01567007,41525.0,41517.0,0.12051855]
[1646357081837,0.19785454,41521.0,41517.0,0.12051855]
[1646357082338,0.20886468,41521.0,41517.0,0.12051855]
[1646357082538,0.19785454,41521.0,41517.0,0.12051855]
[1646357082938,0.01027565,41521.0,41517.0,0.12051855]
[1646357083138,0.0133242,41521.0,41517.0,0.12051855]
[1646357083343,0.01502435,41523.0,41517.0,0.12051855]
[1646357083777,0.01463943,41522.0,41517.0,0.12051855]
[1646357083977,0.3,41530.0,41517.0,0.12051855]
[1646357083978,0.20255702,41521.0,41517.0,0.12051855]
[1646357084177,0.01404946,41519.0,41517.0,0.12051855]
[1646357084379,0.18786179,41521.0,41517.0,0.12051855]
[1646357084589,0.367883,41518.0,41512.0,0.005]
[1646357084783,0.362883,41518.0,41512.0,0.005]
[1646357084979,0.25364196,41519.0,41512.0,0.005]
[1646357085179,0.367881,41518.0,41512.0,0.005]
[1646357085377,0.16598763,41514.0,41512.0,0.005]
[1646357085581,0.15,41527.0,41512.0,0.005]
[1646357085582,0.367881,41520.0,41512.0,0.005]
[1646357085882,0.15,41527.0,41511.0,0.06027039]
[1646357085883,0.367881,41522.0,41511.0,0.06027039]
[1646357086278,0.15,41527.0,41511.0,0.06027039]
[1646357086478,0.20877945,41522.0,41511.0,0.06027039]
[1646357086678,0.30877945,41522.0,41511.0,0.06027039]
[1646357086881,0.367881,41521.0,41511.0,0.06027039]
[1646357087081,0.367881,41521.0,41507.0,0.005]
[1646357087082,0.367881,41520.0,41507.0,0.005]
[1646357087323,0.30877945,41522.0,41507.0,0.005]
[1646357087526,0.30877945,41522.0,41507.0,0.01711552]
[1646357087724,0.20877945,41522.0,41507.0,0.31311506]
[1646357087923,0.20877945,41522.0,41508.0,0.01219575]
[1646357088126,0.41840479,41522.0,41509.0,0.01323662]
[1646357088323,0.41840479,41522.0,41510.0,0.01398768]
[1646357088527,0.17505592,41515.0,41511.0,0.00919861]
[1646357088723,0.17505592,41515.0,41512.0,0.01207441]
[1646357088724,0.367881,41514.0,41512.0,0.01207441]
[1646357088931,0.17505592,41515.0,41507.0,0.007]
[1646357088932,0.43995338,41508.0,41507.0,0.007]
[1646357089126,0.60660114,41508.0,41507.0,0.007]
[1646357089726,0.02401,41507.0,41499.0,0.01353885]
[1646357089924,0.19023138,41501.0,41492.0,0.31258573]
[1646357090126,0.19023138,41501.0,41493.0,0.0090675]
[1646357090324,0.19023138,41501.0,41494.0,0.01180163]
[1646357090526,0.19023138,41501.0,41494.0,0.01273621]
[1646357090728,0.02401,41502.0,41495.0,0.01109212]
[1646357090998,0.02401,41507.0,41493.0,0.0602967]
[1646357091202,0.1,41508.0,41494.0,0.3]
[1646357091203,0.02401,41505.0,41494.0,0.3]
[1646357091406,0.004,41512.0,41495.0,0.7233]
[1646357091602,0.18525391,41512.0,41499.0,0.7233]
[1646357091800,0.18125391,41512.0,41500.0,0.01237208]
[1646357092000,0.18125391,41512.0,41492.0,0.18084629]
[1646357092001,0.08117748,41510.0,41493.0,0.3]
[1646357092205,0.02401,41506.0,41493.0,0.01199533]
[1646357092402,0.02401,41504.0,41499.0,0.005]
[1646357092600,0.59851438,41501.0,41499.0,0.005]
[1646357092803,0.78157806,41501.0,41499.0,0.005]
[1646357093602,0.02401,41499.0,41488.0,0.01370521]
[1646357093808,0.02401,41495.0,41487.0,0.06030959]
[1646357094005,0.02401,41495.0,41472.0,1.10625378]
[1646357094006,0.02401,41488.0,41472.0,1.11905797]
[1646357094206,0.02401,41484.0,41475.0,0.5]
[1646357094504,0.367881,41488.0,41486.0,0.50782337]
[1646357094729,0.44180998,41487.0,41486.0,0.50782337]
[1646357094927,0.85429098,41487.0,41486.0,0.50782337]
[1646357095931,0.412481,41487.0,41486.0,0.50782337]
[1646357096336,0.06861,41493.0,41486.0,0.50782337]
[1646357096536,0.0025,41492.0,41486.0,0.50782337]
[1646357097130,0.0025,41492.0,41486.0,0.51748498]
[1646357097331,0.0025,41492.0,41486.0,0.50782337]
[1646357097332,0.06374706,41488.0,41486.0,0.50782337]
[1646357097532,0.0025,41492.0,41486.0,0.50782337]
[1646357097533,0.367881,41487.0,41486.0,0.50782337]
[1646357098130,0.21485191,41495.0,41486.0,0.74170347]
[1646357098334,0.367881,41494.0,41486.0,0.7541829]
[1646357098583,0.003,41487.0,41486.0,0.74170347]
[1646357098787,0.003,41487.0,41486.0,0.75286188]
[1646357098987,0.003,41487.0,41486.0,0.74170347]
[1646357099183,0.003,41487.0,41486.0,0.7543921]
[1646357099387,0.003,41487.0,41486.0,1.04170347]
[1646357099585,0.0446,41509.0,41492.0,0.06029956]
[1646357099791,1.00199898,41512.0,41492.0,0.06029956]
[1646357099792,0.9651,41512.0,41493.0,0.3]
[1646357099986,0.9651,41512.0,41494.0,0.00912938]
[1646357099987,0.4651,41512.0,41494.0,0.00912938]
[1646357100185,0.382,41517.0,41505.0,0.23125917]
[1646357100186,0.06703771,41509.0,41505.0,0.23125917]
[1646357100388,0.02401,41508.0,41495.0,0.01117706]
[1646357100586,2.10095207,41519.0,41500.0,0.78358937]
[1646357100793,0.5,41519.0,41501.0,1.03698635]
[1646357100996,0.4515,41520.0,41501.0,1.03491644]
[1646357101184,0.367881,41525.0,41502.0,0.00900992]
[1646357101388,0.367881,41523.0,41515.0,0.24978028]
[1646357101592,0.22020391,41524.0,41502.0,0.83230992]
[1646357101593,0.20965954,41514.0,41502.0,0.83230992]
[1646357101789,0.20965954,41514.0,41508.0,0.01162889]
[1646357101989,0.391891,41513.0,41501.0,0.31159984]
[1646357102233,0.17862566,41507.0,41501.0,0.0120206]
[1646357102533,0.17862566,41507.0,41503.0,0.22765594]
[1646357102734,0.23979959,41507.0,41503.0,0.01516045]
[1646357102934,0.367881,41505.0,41503.0,0.002]
[1646357103139,0.02401,41517.0,41503.0,0.01250285]
[1646357103433,0.367881,41519.0,41505.0,0.0110906]
[1646357103634,0.367881,41515.0,41496.0,0.02220987]
[1646357103833,0.19298954,41504.0,41496.0,0.01204]
[1646357104032,0.367881,41500.0,41496.0,0.01204]
[1646357104236,0.19106746,41501.0,41494.0,0.01397007]
[1646357104530,0.15,41512.0,41496.0,0.004]
[1646357104531,0.01472772,41499.0,41496.0,0.004]
[1646357104733,0.4677,41518.0,41496.0,0.01577295]
[1646357104938,0.1,41519.0,41498.0,0.12056708]
[1646357104939,0.01296002,41510.0,41498.0,0.12056708]
[1646357105232,0.01094959,41507.0,41500.0,0.00911819]
[1646357105430,0.01094959,41507.0,41501.0,0.02308377]
[1646357105632,0.01094959,41507.0,41501.0,0.00982028]
[1646357105833,0.01094959,41507.0,41500.0,0.11204]
[1646357106087,0.0021,41529.0,41503.0,0.01172559]
[1646357106286,0.02401,41519.0,41504.0,0.01206904]
[1646357106487,0.03652062,41517.0,41503.0,0.3]
[1646357106688,0.01478376,41515.0,41503.0,0.31080918]
[1646357106892,0.01478376,41515.0,41504.0,0.00989798]
[1646357106893,0.1616242,41510.0,41504.0,0.00989798]
[1646357107087,0.1616242,41510.0,41503.0,0.3]
[1646357107386,0.0121009,41507.0,41504.0,0.02461802]
[1646357107587,0.0149178,41506.0,41505.0,0.01134569]
[1646357107787,0.01376343,41505.0,41504.0,0.26152894]
[1646357107988,0.01376343,41505.0,41501.0,0.01204]
[1646357107989,0.02401,41510.0,41501.0,0.01204]
[1646357108188,0.01261139,41503.0,41501.0,0.01204]
[1646357108388,0.060292,41515.0,41501.0,0.02334494]
[1646357108389,0.17361411,41510.0,41501.0,0.02334494]
[1646357108587,0.0150487,41509.0,41501.0,0.01293946]
[1646357108789,0.060292,41515.0,41502.0,0.01049753]
[1646357108790,0.01109159,41507.0,41502.0,0.01049753]
[1646357108990,0.01364289,41513.0,41503.0,1.01124295]
[1646357109187,0.553474,41528.0,41504.0,0.31356217]
[1646357109188,0.01321457,41511.0,41504.0,0.31356217]
[1646357109388,0.01070131,41511.0,41505.0,0.05687334]
[1646357109595,0.01237993,41511.0,41506.0,0.01243256]
[1646357109842,0.553474,41528.0,41507.0,0.79054103]
[1646357109843,0.0389461,41527.0,41507.0,0.79054103]
[1646357110047,0.0149361,41527.0,41508.0,1.11968212]
[1646357110238,0.0149361,41527.0,41510.0,0.7354]
[1646357110439,0.07126399,41524.0,41512.0,0.7354]
[1646357110637,0.20104279,41519.0,41512.0,0.01277861]
[1646357110838,0.03647523,41523.0,41513.0,0.01332647]
[1646357111038,0.03647523,41523.0,41516.0,0.23245727]
[1646357111237,0.02401,41521.0,41512.0,0.01215651]
[1646357111541,0.01098702,41519.0,41515.0,0.01397985]
[1646357111739,0.01168411,41526.0,41516.0,0.02292972]
[1646357111940,0.01599211,41525.0,41517.0,0.01206436]
[1646357112143,0.01593211,41525.0,41518.0,0.01278845]
[1646357112341,0.01593211,41525.0,41524.0,0.21387259]
[1646357112538,0.01593211,41525.0,41516.0,0.1]
[1646357112539,0.01593211,41525.0,41520.0,0.01182132]
[1646357112942,0.0021,41529.0,41517.0,0.7354]
[1646357112943,0.000226,41520.0,41517.0,0.7354]
[1646357113140,0.000226,41520.0,41518.0,0.313385]
[1646357113583,0.000226,41520.0,41519.0,0.113383]
[1646357114185,0.000226,41520.0,41519.0,0.12050851]
[1646357114386,0.17598733,41520.0,41519.0,0.12050851]
[1646357114584,0.17598733,41520.0,41514.0,0.004]
[1646357114585,0.06760033,41519.0,41514.0,0.004]
[1646357114788,0.01169898,41518.0,41514.0,0.004]
[1646357114985,0.01123071,41517.0,41514.0,0.004]
[1646357115184,0.01396894,41515.0,41514.0,0.004]
[1646357115383,0.000226,41520.0,41514.0,0.004]
[1646357115783,0.000226,41520.0,41511.0,0.3]
[1646357115988,0.000226,41520.0,41511.0,0.42053152]
[1646357116186,0.000226,41520.0,41512.0,0.7354]
[1646357116388,0.000226,41520.0,41514.0,0.7354]
[1646357116687,0.000226,41520.0,41515.0,0.457989]
[1646357116890,0.0021,41529.0,41519.0,0.741105]
[1646357117087,0.0178665,41529.0,41521.0,0.1204917]
[1646357117338,0.18143036,41528.0,41521.0,0.1]
[1646357117540,0.39828107,41528.0,41521.0,0.0446]
[1646357117735,0.01457032,41527.0,41521.0,0.0446]
[1646357118334,0.367878,41526.0,41521.0,0.0446]
[1646357118540,0.01262549,41526.0,41521.0,0.0446]
[1646357118736,0.18143036,41528.0,41521.0,0.0446]
[1646357119134,0.01559048,41527.0,41521.0,0.0446]
[1646357119335,0.18143036,41528.0,41523.0,0.22462832]
[1646357119535,0.01566682,41527.0,41523.0,0.22462832]
[1646357119735,0.01566682,41527.0,41524.0,0.005703]
[1646357119939,0.0021,41529.0,41523.0,0.28488192]
[1646357120137,0.0021,41529.0,41523.0,0.38488192]
[1646357120434,0.0021,41529.0,41523.0,0.28488192]
[1646357120634,0.0021,41529.0,41523.0,0.22462832]
[1646357121005,0.1762822,41528.0,41524.0,0.06025127]
[1646357121404,0.0021,41529.0,41525.0,0.3]
[1646357121704,0.0021,41529.0,41525.0,0.4]
[1646357121902,0.0021,41529.0,41526.0,0.005698]
[1646357122103,0.0021,41529.0,41523.0,0.22462832]
[1646357122303,0.0021,41529.0,41526.0,0.005697]
[1646357122304,0.001,41529.0,41526.0,0.005697]
[1646357122514,0.0011,41531.0,41527.0,2.13]
[1646357122705,0.0011,41531.0,41528.0,0.105694]
[1646357122904,0.20586419,41530.0,41529.0,0.005693]
[1646357123104,0.0011,41531.0,41529.0,0.01694364]
[1646357123305,0.0011,41531.0,41530.0,0.01238255]
[1646357123504,0.0011,41531.0,41530.0,0.005691]
[1646357124106,0.01033535,41530.0,41525.0,0.06024991]
[1646357124306,0.01033535,41530.0,41523.0,0.0446]
[1646357124504,0.22090853,41531.0,41524.0,0.005694]
[1646357124736,0.20834745,41531.0,41525.0,0.005697]
[1646357124939,0.22396625,41531.0,41522.0,0.005698]
[1646357125142,0.18082883,41524.0,41519.0,0.01204]
[1646357125338,0.19770373,41515.0,41514.0,0.06027023]
[1646357125536,0.19770373,41515.0,41510.0,0.01204]
[1646357125934,0.02401,41526.0,41502.0,0.31204]
[1646357126135,0.01360377,41525.0,41518.0,0.2289562]
[1646357126335,0.01360377,41525.0,41518.0,0.2232442]
[1646357126534,0.0148923,41523.0,41519.0,0.06025939]
[1646357126733,0.01061636,41522.0,41519.0,0.06025939]
[1646357127334,0.01061636,41522.0,41516.0,0.12051878]
[1646357127741,0.01122609,41522.0,41517.0,0.00571]
[1646357127935,0.18247867,41523.0,41517.0,0.005711]
[1646357128135,0.18247867,41523.0,41516.0,0.12051878]
[1646357128136,0.01501168,41519.0,41516.0,0.12051878]
[1646357128583,0.01495645,41519.0,41517.0,0.003]
[1646357128786,0.18247867,41523.0,41517.0,0.003]
[1646357129087,0.01098208,41529.0,41518.0,0.05031]
[1646357129284,0.01156938,41527.0,41518.0,0.35031]
[1646357129485,0.01226948,41530.0,41518.0,0.0446]
[1646357129685,0.01226948,41530.0,41517.0,0.06326427]
[1646357129686,0.02401,41528.0,41517.0,0.06326427]
[1646357129889,0.06509193,41519.0,41508.0,0.01204]
[1646357130090,0.02401,41515.0,41501.0,0.18080925]
[1646357130295,0.002182,41501.0,41494.0,0.4509]
[1646357130488,0.002182,41501.0,41489.0,1.3245]
[1646357130684,0.002182,41501.0,41494.0,0.06029707]
[1646357130886,0.01411421,41499.0,41494.0,0.06029707]
[1646357131084,0.01411421,41499.0,41489.0,1.3245]
[1646357131085,0.20722723,41496.0,41490.0,0.24109478]
[1646357131285,0.01515574,41498.0,41490.0,0.24109478]
[1646357131685,0.002182,41501.0,41490.0,0.24109478]
[1646357131885,0.01257555,41501.0,41491.0,0.3]
[1646357132085,0.0114709,41499.0,41491.0,0.3]
[1646357132341,0.0114709,41499.0,41490.0,0.24109478]
[1646357132536,0.0114709,41499.0,41493.0,0.01340501]
[1646357132939,0.0114709,41499.0,41493.0,0.01334501]
[1646357133133,0.26109499,41497.0,41493.0,0.01334501]
[1646357133333,0.15881091,41496.0,41493.0,0.01334501]
[1646357133731,0.15881091,41496.0,41493.0,0.02378328]
[1646357133936,0.01577607,41495.0,41493.0,0.01878328]
[1646357134133,0.2026205,41500.0,41493.0,0.00834501]
[1646357134134,0.37811671,41494.0,41493.0,0.00834501]
[1646357134333,0.367878,41494.0,41493.0,0.00834501]
[1646357134935,0.2026205,41500.0,41493.0,0.00834501]
[1646357135134,0.367878,41499.0,41493.0,0.00834501]
[1646357136080,0.367878,41497.0,41493.0,0.00834501]
[1646357136785,0.01204,41500.0,41494.0,0.005754]
[1646357136981,0.01204,41500.0,41495.0,0.01962414]
[1646357137181,0.002182,41501.0,41496.0,0.01120825]
[1646357137380,0.002182,41501.0,41493.0,0.00834501]
[1646357137781,0.185224,41498.0,41493.0,0.00834501]
[1646357138379,0.002182,41501.0,41494.0,0.00984647]
[1646357138779,0.002182,41501.0,41500.0,0.23586109]
[1646357139182,0.002182,41501.0,41500.0,0.005748]
[1646357140241,0.002182,41501.0,41498.0,0.24608478]
[1646357140442,0.002182,41501.0,41495.0,0.31019435]
[1646357140638,0.002182,41501.0,41500.0,0.001]
[1646357141439,0.60878213,41501.0,41500.0,0.001]
[1646357141640,0.24090413,41501.0,41500.0,0.001]
[1646357141841,0.002182,41501.0,41493.0,0.02226117]
[1646357142037,0.002182,41501.0,41494.0,0.01693589]
[1646357142236,0.002182,41501.0,41493.0,0.00834501]